[Event "FRA-ch 91st"]
[Site "Agen"]
[Date "2016.08.19"]
[Round "7"]
[White "Jolly, Jean Francois"]
[Black "Feller, Sebastien"]
[Result "1-0"]
[ECO "B90"]
[WhiteElo "2361"]
[BlackElo "2602"]
[Annotator "Besenthal,K/Primel,D"]
[PlyCount "81"]
[EventDate "2016.08.13"]
[EventType "tourn"]
[EventRounds "9"]
[EventCountry "FRA"]
[EventCategory "14"]
[SourceTitle "CBM 174"]
[Source "ChessBase"]
[SourceDate "2016.09.13"]
[SourceVersion "1"]
[SourceVersionDate "2016.09.13"]
[SourceQuality "1"]
[TimeControl "40/5400+30:1800+30"]

1. e4 {[%emt 0:00:00]} c5 {[%emt 0:00:00]} 2. Nf3 {[%emt 0:00:24]} d6 {[%emt 0:
00:00]} 3. d4 {[%emt 0:00:16]} cxd4 {[%emt 0:00:00]} 4. Nxd4 {[%emt 0:00:05]}
Nf6 {[%emt 0:00:00]} 5. Nc3 {[%emt 0:00:05]} a6 {[%emt 0:02:59]} 6. Nb3 {
[%emt 0:05:37] Cette ligne secondaire a fait l'objet d'un article théorique
SOS dans le numéro 4/2016 de New In chess} e6 {[%emt 0:00:37]} (6... g6 7. Be2
Bg7 8. Be3 Nc6 9. Nd5 O-O 10. Nxf6+ Bxf6 11. c3 b5 12. f4 Bb7 13. Bf3 Na5 14.
Nxa5 Qxa5 15. a3 Qc7 16. O-O Rfd8 17. Re1 Rac8 18. Qe2 e5 19. Qf2 exf4 20. Bxf4
Be5 21. Bg5 Re8 22. Kh1 a5 23. Rad1 Bc6 24. Be3 b4 25. Bb6 Qb7 26. Bxa5 bxa3
27. bxa3 Ba4 28. Rc1 Qe7 29. Bb4 Qf6 30. Rf1 h5 31. Be2 Qxf2 32. Rxf2 Bd4 33.
Rff1 Be3 34. Ra1 Rxe4 35. Bf3 Re7 36. Rfe1 {Nakamura,H (2787)-Vachier Lagrave,
M (2789) Leuven 2016 0-1 (68)}) 7. g4 {[%emt 0:00:30]} b5 {[%emt 0:02:09]} 8.
Bg2 {[%emt 0:00:22]} Bb7 {[%emt 0:00:12]} 9. g5 {[%emt 0:00:29]} Nfd7 {[%emt 0:
00:13]} (9... b4 10. Nd5 Nxd5 (10... exd5 11. gxf6 dxe4 $13 {Bosch, J ( N.I.C
2016/4)}) 11. exd5 {Bartel,M (2625)-Wojtaszek,R (2713) POL-ch Poznan 2016 (5)
1-0}) 10. Be3 {[%emt 0:03:05]} Ne5 $146 {[%emt 0:16:16]} (10... b4 11. Ne2 Ne5
12. Ned4 Nc4 13. Qe2 Nxe3 14. Qxe3 Nd7 15. f4 Qb6 16. Qh3 e5 17. fxe5 Nxe5 18.
O-O-O g6 19. Kb1 Bg7 20. Ne6 Bf8 21. Nxf8 Kxf8 22. Rhf1 Bc8 23. Qh6+ Kg8 24. h3
Ra7 25. Rf6 Rd7 26. Nd4 Rd8 27. Rff1 Qc7 28. Nf5 gxf5 29. exf5 Qe7 30. Bd5 Rd7
31. Rg1 Qf8 32. Qh4 Bb7 33. Bb3 Nf3 34. g6 {1-0 (34) Miroshnichenko,E (2616)
-Idani,P (2560) Guilan 2016}) 11. Qe2 {[%emt 0:02:32]} Nc4 {[%emt 0:01:19]} 12.
O-O-O {[%emt 0:00:25]} Nd7 {[%emt 0:00:59]} 13. f4 {[%emt 0:15:31]} Be7 {
[%emt 0:20:57]} 14. h4 {[%emt 0:03:35]} Rc8 {[%emt 0:03:45]} 15. Bd4 {[%emt 0:
10:22]} (15. Kb1) 15... e5 $6 {[%emt 0:18:12]} (15... b4 $142 16. Nd5 $5 {
[%cal Ge2e8]}) 16. fxe5 {[%emt 0:04:52]} dxe5 {[%emt 0:00:23]} (16... Ndxe5 {
Plus thématique dans une sicilienne.} 17. Bh3) 17. Bf2 {[%emt 0:02:49]} Qc7 {
[%emt 0:01:31]} 18. Bh3 {[%emt 0:12:13]} Rd8 {[%emt 0:00:06]} 19. Bxd7+ {
[%emt 0:03:43]} Rxd7 {[%emt 0:00:06]} 20. Rxd7 {[%emt 0:00:03]} Qxd7 {[%emt 0:
00:29]} 21. Nc5 {[%emt 0:00:25]} Qc7 {[%emt 0:05:59]} 22. Nxb7 {[%emt 0:00:10]}
Qxb7 {[%emt 0:00:05]} 23. Rd1 {[%emt 0:05:42]} O-O {[%emt 0:14:58]} 24. Nd5 {
[%emt 0:00:48]} Bd6 {[%emt 0:05:16]} (24... Rc8) 25. h5 {[%emt 0:02:53]} Qc8 {
[%emt 0:02:08]} 26. Qf3 {[%emt 0:03:19]} (26. h6 $40) 26... Qd8 {[%emt 0:02:34]
} 27. Qg4 {[%emt 0:05:53]} Qc8 {[%emt 0:01:26]} 28. Qg3 {[%emt 0:00:27]} Qe6 {
[%emt 0:00:32]} 29. Qf3 {[%emt 0:02:42] Weiß steht besser: Sein Angriff ist
weiter fortgeschritten und er hat den besseren Läufer. Die Positionierung des
Springers ist sowieso ideal, während der Sc4 von seinem Platz verdrängt
werden kann. Das Material ist aber bereits stark reduziert, so dass man sich
einen unmittelbaren Durchbruch des Anziehenden kaum vorstellen kann.} (29. Nf6+
Kh8) 29... h6 $2 {[%emt 0:00:42] Ein solcher Zug auf dem Flügel, wo man
angegriffen wird, grenzt fast an Harakiri - Weiß darf sich jetzt bereits auf
die Öffnung der g-Linie freuen. Man muss aber natürlich sagen, dass die
Situation kompliziert und in ihrer Gesamtheit schwer zu beurteilen war.} (29...
Rc8 {oder}) (29... Be7 {was nicht nur eine gute Verteidigung gegen einen
Überfall mit Sf6+ gewesen wäre, sondern auch dem Sc4 ein Rückzugsfeld
eröffnet hätte, wären natürliche Züge gewesen.}) 30. b3 {[%emt 0:10:14]}
Ba3+ {[%emt 0:00:03]} (30... hxg5 31. bxc4 bxc4 32. Rg1 $18) (30... Na5 31.
gxh6 Qxh6+ 32. Be3 Qe6 {und Weiß hält alle Trümpfe in der Hand.}) 31. Kb1 {
[%emt 0:00:10]} Rb8 {[%emt 0:00:03]} (31... Nd6 32. gxh6 Qxh6 33. Be3 Qe6 34.
h6 $18) 32. Qg3 {[%emt 0:03:20]} (32. gxh6) 32... hxg5 {[%emt 0:01:27]} 33.
Qxg5 {[%emt 0:00:14]} Kh8 {[%emt 0:00:31]} (33... Qh6 34. Qxh6 gxh6 35. bxc4
bxc4+ 36. Nb6 $18) 34. Rg1 $18 {[%emt 0:00:53]} Qh6 {[%emt 0:00:28]} 35. Qxh6+
{[%emt 0:01:10]} gxh6 {[%emt 0:00:01]} 36. bxc4 {[%emt 0:00:17]} bxc4+ {
[%emt 0:00:02]} 37. Nb6 {[%emt 0:00:06]} Bb4 {[%emt 0:01:19]} 38. Kc1 {[%emt 0:
00:21]} Bc3 {[%emt 0:00:42]} 39. Nxc4 {[%emt 0:01:40]} Rb4 {[%emt 0:00:28]} 40.
Nd2 {[%emt 0:01:02]} Ra4 {[%emt 0:00:32]} 41. Bh4 {[%emt 0:05:49] Et le
quimpérois réalise une norme de GMI après cette ronde.} 1-0

[Event "Khanty-Mansiysk FIDE GP (Women)"]
[Site "Khanty-Mansiysk"]
[Date "2014.04.14"]
[Round "5"]
[White "Kosintseva, Tatiana"]
[Black "Lagno, Kateryna"]
[Result "1/2-1/2"]
[ECO "B90"]
[WhiteElo "2496"]
[BlackElo "2543"]
[Annotator "ChessBase Website"]
[PlyCount "95"]
[EventDate "2014.04.09"]
[EventType "tourn"]
[EventRounds "11"]
[EventCountry "RUS"]
[EventCategory "10"]
[SourceTitle "CBM 160"]
[Source "ChessBase"]
[SourceDate "2014.05.15"]
[SourceVersion "1"]
[SourceVersionDate "2014.05.15"]
[SourceQuality "1"]
[TimeControl "40/5400+30:1800+30"]
[WhiteClock "1:30:00"]
[BlackClock "1:30:00"]

1. e4 {[%emt 0:00:00]} c5 {[%emt 0:00:00]} 2. Nf3 {[%emt 0:00:00]} d6 {[%emt 0:
00:10]} 3. d4 {[%emt 0:00:00]} cxd4 {[%emt 0:00:07]} 4. Nxd4 {[%emt 0:00:00]}
Nf6 {[%emt 0:00:09]} 5. Nc3 {[%emt 0:00:09]} a6 {[%emt 0:00:10]} 6. h3 {
[%emt 0:00:25]} e5 {[%emt 0:00:35]} 7. Nde2 {[%emt 0:00:19]} b5 {[%emt 0:00:22]
} 8. Ng3 {[%emt 0:16:27]} (8. Bg5 Nbd7 9. Nd5 Bb7 10. Nec3 Be7 11. Bxf6 Bxf6
12. a4 bxa4 13. Rxa4 O-O 14. Bc4 Nc5 15. Ra2 Kh8 16. O-O Bg5 17. Qe2 a5 18. Rd1
Rb8 19. Rda1 Bc6 20. Bb5 Bxb5 21. Nxb5 Qd7 22. c4 Nb3 23. Rd1 Nc1 24. Rxc1 Bxc1
25. Rxa5 Qc6 26. Ra1 Bg5 27. Ra7 Bd8 28. Kh2 f5 29. b3 fxe4 30. Qxe4 Bb6 31.
Ra6 Rxf2 32. Qg4 Rff8 33. Nxb6 Rxb6 34. Ra7 Rb7 35. Rxb7 Qxb7 36. Nxd6 Qe7 37.
c5 h6 {Heberla,B (2556)-Antoniewski,R (2550) Czechia 2014 1/2-1/2}) 8... Be6
$146 {[%emt 0:02:14]} (8... Bb7 9. Be2 Nbd7 10. O-O g6 11. Bf3 b4 12. Na4 Qa5
13. b3 Rc8 14. Bd2 d5 15. exd5 Bxd5 16. c4 bxc3 17. Bxc3 Bxf3 18. Qxf3 Qd5 19.
Qe3 Qe6 20. Rac1 Nd5 21. Ba5 Rxc1 22. Qxc1 f5 23. Rd1 Kf7 24. Qc8 N7f6 25. Qb7+
Be7 26. Rc1 e4 27. Ne2 Qe5 28. Nb6 e3 29. f3 Rb8 30. Nc4 Rxb7 31. Nxe5+ Ke6 32.
Nd3 Kd6 33. Nd4 Nc7 34. Rc6+ Kd5 35. Nf4+ Ke5 36. Bxc7+ Kxd4 37. Rc4# {1-0 (37)
Conquest,S (2546)-Oswald,G (2147) Great Yarmouth 2007}) 9. Bg5 {[%emt 0:02:46]}
Nbd7 {[%emt 0:03:59]} 10. Nh5 {[%emt 0:10:38]} Qa5 {[%emt 0:31:21]} 11. Bxf6 {
[%emt 0:14:50]} Nxf6 {[%emt 0:00:32]} 12. Nxf6+ {[%emt 0:00:13]} gxf6 {[%emt 0:
00:04]} 13. Bd3 {[%emt 0:15:19]} b4 {[%emt 0:05:21]} 14. Nd5 $5 {[%emt 0:05:29]
Kosintseva's pawn sacrifice out of the opening netted her a slight initiative
on the light squares, fueled by the presence of opposite colored bishops.
However Lagno's Sveshnikov-type structure provided her plenty of counterplay,
she sacrificed her extra pawn back to force and endgame that she had no
problems holding.} Bxd5 {[%emt 0:04:41]} 15. exd5 {[%emt 0:00:05]} Qxd5 {
[%emt 0:00:56]} 16. Qe2 {[%emt 0:01:45]} Qc6 {[%emt 0:01:15]} 17. f4 $44 {
[%emt 0:02:00][%cal Ge2e8]} Bg7 {[%emt 0:07:31]} 18. O-O {[%emt 0:11:56]} O-O {
[%emt 0:04:57]} 19. Bf5 {[%emt 0:01:08]} h6 {[%emt 0:07:06]} 20. Rad1 {[%emt 0:
03:16]} Rfe8 {[%emt 0:05:41]} 21. fxe5 {[%emt 0:06:13]} Qc5+ {[%emt 0:04:08]}
22. Kh1 {[%emt 0:00:10]} Rxe5 {[%emt 0:02:21]} 23. Qg4 {[%emt 0:01:39]} Rae8 {
[%emt 0:01:30]} 24. Rd3 {[%emt 0:01:31]} Re1 {[%emt 0:02:41]} 25. Rdf3 {
[%emt 0:00:37]} a5 {[%emt 0:01:11]} 26. b3 {[%emt 0:02:12]} Rxf1+ {[%emt 0:04:
07]} 27. Rxf1 {[%emt 0:00:03]} Qc3 {[%emt 0:01:01]} 28. Bd3 {[%emt 0:03:07]}
Re1 {[%emt 0:00:24]} 29. Qf5 {[%emt 0:01:04]} Qe5 {[%emt 0:02:05]} 30. Rxe1 {
[%emt 0:00:59]} Qxe1+ {[%emt 0:00:05]} 31. Kh2 {[%emt 0:00:02]} Qe5+ {[%emt 0:
00:20]} 32. g3 {[%emt 0:00:33]} Qxf5 {[%emt 0:02:16]} 33. Bxf5 {[%emt 0:00:03]}
Kf8 {[%emt 0:01:35]} 34. g4 {[%emt 0:00:55]} Ke7 {[%emt 0:00:28]} 35. Kg3 {
[%emt 0:00:02]} d5 {[%emt 0:00:14]} 36. Kf4 {[%emt 0:00:22]} Kd6 {[%emt 0:01:
04]} 37. Bc8 {[%emt 0:00:36]} f5 {[%emt 0:03:16]} 38. Kxf5 {[%emt 0:00:53]} Bc3
{[%emt 0:00:14]} 39. h4 {[%emt 0:00:46]} f6 {[%emt 0:01:26]} 40. Kg6 {[%emt 0:
00:00]} Be1 {[%emt 0:00:00]} 41. h5 {[%emt 0:09:58]} Bd2 {[%emt 0:00:56]} 42.
Kxf6 {[%emt 0:00:13]} Bg5+ {[%emt 0:00:15]} 43. Kf5 {[%emt 0:00:17]} Bd2 {
[%emt 0:00:30]} 44. Ba6 {[%emt 0:01:31]} Bg5 {[%emt 0:00:31]} 45. Bb7 {[%emt 0:
03:47]} Bd2 {[%emt 0:00:23]} 46. Ba6 {[%emt 0:00:53]} Bg5 {[%emt 0:00:06]} 47.
Bb7 {[%emt 0:00:06]} Bd2 {[%emt 0:00:07]} 48. Ba6 {[%emt 0:00:05]} 1/2-1/2

[Event "EU-ch 12th"]
[Site "Aix les Bains"]
[Date "2011.03.23"]
[Round "2"]
[White "Gharamian, Tigran"]
[Black "Esen, Baris"]
[Result "0-1"]
[ECO "B90"]
[WhiteElo "2650"]
[BlackElo "2528"]
[Annotator "Marchand,A/Primel,D"]
[PlyCount "154"]
[EventDate "2011.03.22"]
[EventType "swiss"]
[EventRounds "11"]
[EventCountry "FRA"]
[SourceTitle "CBM 142 Extra"]
[Source "ChessBase"]
[SourceDate "2011.06.27"]
[SourceVersion "1"]
[SourceVersionDate "2011.06.27"]
[SourceQuality "1"]
[TimeControl "40/5400+30:1800+30"]

1. e4 c5 2. Nf3 d6 3. d4 cxd4 4. Nxd4 Nf6 5. Nc3 a6 6. Be3 e5 (6... e6) (6...
Ng4) 7. Nb3 (7. Nf3 {L'alternative} Be7 8. Bc4) 7... Be6 (7... Be7) 8. Qd2 (8.
f3 h5 9. Qd2 Nbd7 10. Nd5 Bxd5 11. exd5 g6 $5 (11... Qc7 12. c4 a5 $132 {
[%csl Gb4,Gc5];Nolte,R (2420)-Gopal,G (2604) Asian Continental op 9th 2010 (1)
0-1}) 12. Be2 Bg7 13. O-O O-O 14. Na5 {[%csl Rb7,Rc6];Leko,P (2737)-Wojtaszek,
R (2717) Istanbul ol (Men) 40th 2012 (6.1) 1/2} (14. Rac1 $5 {[%cal Gc2c4]}))
8... Nbd7 9. O-O-O (9. f3 {[%cal Gg2g4] La grande ligne}) 9... Be7 10. f4 {89}
b5 (10... Ng4 $5 11. g3 (11. Bg1 $6 exf4 {[%cal Ge7g5]}) 11... Nxe3 12. Qxe3
O-O 13. Kb1 {[%cal Gf4f5]} b5 14. f5 Bc4 15. Bxc4 (15. h4) 15... bxc4 {[%csl
Rb2]} 16. Nd2 Nb6 $132 {Vuckovic,B (2576)-Gritsenko,A (2403) Moscow op-A 2009 
(4) 1/2}) 11. Kb1 (11. f5 Bc4 12. g4 Nxg4 13. Rg1 Nxe3 14. Qxe3 Bxb3 15. cxb3
O-O 16. Kb1 Nb6 17. Be2 Bf6 18. Rg3 Re8 19. Qd2 Ra7 20. Qxd6 Rd7 21. Qc6 Rd4
22. Rgd3 Qb8 23. Nd5 Nxd5 24. exd5 Rxd3 25. Bxd3 e4 26. Be2 Qe5 27. Qc2 Qxf5
28. d6 Qe5 29. d7 Rd8 30. a3 g6 31. Ka2 Bg7 32. Rd2 f5 33. Qc8 Qf6 34. Qc7 f4
35. Bg4 h5 36. Be6+ Kh7 37. Bd5 e3 38. Rg2 f3 39. Rc2 e2 {0-1 (39) Jakovenko,D
(2741)-Karjakin,S (2775) Moscow 2012}) 11... Rc8 {[%csl Gc4]} 12. h3 {Le
français aimait bien cette ligne secondaire qui lui avait d'ailleurs apporté
un point contre Hoang mon coéquipier en N1 mais c'est très lent et après cette
partie, je ne suis pas sur qu'il la rejoue prochainement.} (12. f5 $142 Bc4 13.
g4 $5 Nxg4 14. Rg1 Nxe3 15. Qxe3 Qb6 16. Qg3 $44 {Ni Hua (2701)-Vitiugov,N 
(2681) CHN-RUS Summit Men 6th Rapid 2009 (10) 1-0}) 12... h5 $1 {[%csl Gg4]} (
12... O-O 13. g4 $36) (12... b4 13. Nd5 Nxe4 14. Qxb4 Bxd5 15. Rxd5 $14 {
Gharamian,T (2614)-Pham Minh Hoang (2487) FRA-chT1 0910 2009 (2.1) 1-0}) 13. f5
{Après 30 mns de réflexion sur ce coup} Bc4 {01h29} 14. Bxc4 (14. a3 Qc7 15.
Bd3 h4 16. Rhg1 d5 17. Nxd5 Nxd5 18. exd5 Bxd5 19. Bxb5 axb5 20. Qxd5 b4 21. a4
Qxc2+ 22. Ka2 Qxf5 23. Rgf1 Qe6 24. Qxe6 fxe6 25. Rc1 Ra8 26. a5 Nf6 27. Rc7
Nd5 28. Ra7 Rxa7 29. Bxa7 Kd7 30. Kb1 Ra8 31. Bg1 g5 32. Kc2 Nf4 33. Ra1 Kc6
34. a6 Nxg2 35. a7 Nf4 36. Na5+ Kb5 37. Kb3 Nxh3 38. Be3 Bc5 39. Bxc5 Kxc5 40.
Nc4 Nf4 41. Ra5+ Kd4 42. Nxe5 h3 43. Ng4 Nd3 {Sivuk,V (2482)-Matuszewski,M 
(2375) Krakow 2012 0-1 (68)}) 14... bxc4 15. Nc1 h4 $1 {[%csl Rg3] Les Blancs
n'ont plus d'espoir d'attaque а l'aile-roi} 16. Rhe1 {Un peu passif d'être
limité а la défense du Pe4 mais la Rh1 n'avait pas vraiment d'autres choix.}
Rb8 $1 {[%csl Rb2]} 17. Bg5 (17. Ka1 $142 Qc7 {[%cal Gc7b7]} 18. Bg5 Qb7 19. b3
Qc6 20. N1e2 a5 21. Nd5 Nxe4 22. Nxe7 Qc5 $13 23. Qc1 cxb3 24. cxb3 Qxc1+ 25.
Rxc1 Nxg5 26. Nc6 Ra8 27. Nc3 {[%cal Gc3a4,Gc3d5]}) 17... Qb6 $132 18. b3 {
Le signe que la partie a mal tourné pour le français} Qc6 {[%csl Re4]} 19. Bxf6
Nxf6 20. Nd5 $6 {Les Blancs vont gagner un P mais sans résoudre leurs
problèmes et le Nc3 était un défenseur important du roque} Nxd5 21. Qxd5 Qc7 {
[%csl Rb1]} 22. Ka1 O-O 23. Qxc4 $6 Qxc4 $1 24. bxc4 Rfc8 $36 {[%csl Ra1,Gb8]}
25. Rd3 Rxc4 26. c3 d5 $1 $40 {[%csl Ra1][%cal Ge7a3,Ga3b2] Sans surprise le K
Blanc est coupé par la Rb8 et les Noirs ont maintenant une forte attaque même
sans les Q} 27. Rxd5 Rxc3 (27... Ba3 28. Nd3 Rxc3 29. Rb1 Rxb1+ 30. Kxb1 f6 31.
Rd7 Kh7 {[%csl Rb1][%cal Gh7h6]}) 28. Nd3 f6 29. Rc1 Rxc1+ 30. Nxc1 Rb4 31. Rd7
Bf8 32. Ne2 Rxe4 {[%csl Ge5]} 33. Nc3 Rf4 $19 34. Ra7 Rxf5 35. Rxa6 Rf2 36. a4
Bc5 (36... Rxg2 37. a5 Rg3 38. Kb2 Rxh3 39. Ra8 Rd3 40. a6 Rd6 (40... h3 $4 41.
a7 h2 42. Rxf8+) 41. a7 Ra6 $19) 37. Rc6 Bd4 38. Kb1 f5 (38... Rxg2 {Plus
simple}) 39. Nb5 Rb2+ 40. Kc1 Rb4 (40... Rxg2 {Les Noirs devaient avoir le
temps de prendre le P car le P"a" est encore loin de la promotion}) 41. Nxd4
Rxd4 42. Rc5 (42. a5 Ra4 (42... e4 43. a6 Ra4)) 42... Rxa4 43. Rxe5 g6 44. Re2
Kf7 (44... Rd4 {[%csl Rc1]}) 45. Rb2 Rd4 {[%csl Rc1] Coupe le R et les Noirs
ont encore des petites chances de gain.} 46. Re2 Kf6 47. Kc2 Kg5 $2 (47... Re4
$1 48. Rd2 (48. Kd2 Rxe2+ (48... Kg5) 49. Kxe2 g5) 48... Ke5 {[%csl Rc2,Rg2]
[%cal Ge5f4,Gf4g3]} 49. Kd3 (49. Kd1 Rd4)) 48. Kc3 Rd1 49. Rf2 Kf6 50. Re2 Rd6
51. Kc2 g5 52. Kc3 g4 53. Rd2 $4 {Il ne s'agit pas d'une erreur de saisie et
c'est bien Rd2 qui a été joué.} Ra6 $2 {Les deux adversaires avaient pourtant
30 mns en phase KO plus l'incrément de 30 s mais il y a beaucoup d'erreurs
dans la finale} (53... Rxd2 $8 54. Kxd2 gxh3 55. gxh3 f4 56. Ke2 Ke5 57. Kf3
Kf5 $19) 54. Kd3 Ra3+ $2 (54... Rd6+ $8 {Les Noirs avaient une nouvelle chance
d'échanger les R}) 55. Ke2 gxh3 56. gxh3 Rxh3 57. Rd8 Kg5 58. Kf2 Kg4 59. Kg2 {
Le K Blanc a fait le plus dur pour annuler} Ra3 (59... Rg3+ $142) 60. Rg8+ Kf4
61. Rb8 Re3 62. Rb4+ Kg5 63. Rb8 Rd3 64. Ra8 h3+ 65. Kh2 (65. Kf2 {Une
nouvelle erreur du plateau DGT et c'est Kh2 qui a été joué} f4 66. Rf8 Re3 67.
Rg8+ Kh4 68. Rh8+ Kg4 69. Rg8+ Kf5 70. Rg7 Ke4 71. Ra7 Rd3 72. Ra8 Rb3 73. Ra7
f3 74. Re7+ Kf4 75. Kg1 Rb1+) 65... f4 66. Rf8 Re3 67. Rg8+ Kh4 68. Rh8+ Kg4
69. Rg8+ Kf5 70. Rg7 Ke4 71. Ra7 Rd3 72. Ra8 Rb3 73. Ra7 f3 74. Re7+ $4 $138 (
74. Kxh3 f2+ 75. Kg2 $11 Ke3 76. Re7+ Kd3 77. Kxf2) 74... Kf4 75. Kxh3 {
Trop tard!} Rb1 76. Rf7+ Ke3 77. Re7+ Kf2 0-1

[Event "EU-ch 12th"]
[Site "Aix les Bains"]
[Date "2011.03.26"]
[Round "5"]
[White "Bellaiche, Antony"]
[Black "Navara, David"]
[Result "1/2-1/2"]
[ECO "B90"]
[WhiteElo "2472"]
[BlackElo "2722"]
[Annotator "Marchand,A/Primel,D"]
[PlyCount "95"]
[EventDate "2011.03.22"]
[EventType "swiss"]
[EventRounds "11"]
[EventCountry "FRA"]
[SourceTitle "CBM 142 Extra"]
[Source "ChessBase"]
[SourceDate "2011.06.27"]
[SourceVersion "1"]
[SourceVersionDate "2011.06.27"]
[SourceQuality "1"]
[TimeControl "40/5400+30:1800+30"]

1. e4 c5 2. Nf3 d6 3. d4 cxd4 4. Nxd4 Nf6 5. Nc3 a6 6. Be3 e5 7. Nb3 (7. Nf3) (
7. Nde2) 7... Be6 8. Qd2 (8. f3 {La grande ligne} Be7 9. Qd2 O-O 10. O-O-O a5)
8... Nbd7 9. O-O-O {[%emt 0:01:30]} Rc8 10. f4 {74 le coup naturel joué
pourtant après une longue réflexion} b5 {[%emt 0:01:34]} 11. f5 ({RR} 11. Kb1
Qc7 12. h3 h5 13. Bd3 h4 14. Nd5 Bxd5 15. exd5 e4 16. Rhe1 Be7 17. Be2 Nb6 18.
Bg4 Nc4 19. Qf2 Nxg4 20. hxg4 h3 21. Bd4 h2 22. c3 Qb7 23. Qe2 Kf8 24. g5 a5
25. Qxe4 a4 {Topalov,V (2801)-Leko,P (2740)/Monte Carlo 2006/CBM 111 ext/0-1 
(46)}) 11... Bc4 12. Kb1 Be7 13. Bxc4 {[%emt 0:01:08]} bxc4 $146 {89 Les Noirs
continuent de jouer а tempo} ({RR} 13... Rxc4 14. Qd3 O-O 15. Nd2 Nc5 16. Bxc5
Rxc5 17. Nd5 Nxd5 18. exd5 f6 19. Ne4 Rc4 20. b3 Rd4 21. Qe3 Rxd1+ 22. Rxd1 Qd7
23. g4 Rb8 24. h4 b4 25. Qd3 Qb5 26. Qf3 Rf8 27. g5 Qd7 28. Rf1 {Mekhitarian,K
(2504)-Humphrey,J (2289)/Barcelona 2008/CBM 126 Extra/1-0 (59)}) 14. Nc1 Qc7
15. g4 {[%emt 0:01:04]} Qb7 $1 {[%csl Rb2][%cal Gc8b8] 88} (15... Nxg4 16. Rhg1
$44 {[%csl Re8,Rg7]}) (15... Rb8) 16. Qg2 Rb8 $132 {[%csl Rb2]} 17. b3 {
[%emt 0:01:00]} Qc6 {[%emt 0:01:23]} 18. N1e2 {[%emt 0:00:51]} cxb3 {[%emt 0:
01:21]} 19. cxb3 $1 (19. axb3 Nc5 $132 {[%cal Gc5e4,Gc5b3]}) 19... Rb4 (19...
Nc5 $5 {[%csl Re4]}) 20. g5 $1 {[%emt 0:00:39]} Nxe4 {[%emt 0:01:20]} 21. Ka1
Qb7 22. Nd5 Nec5 (22... a5 {[%cal Ga5a4]} 23. Nxb4 axb4 24. g6 d5 $44) 23. Nec3
{[%emt 0:00:36]} Bd8 {70 Les Noirs continuent de jouer très vite mais ils
commencent а être nettement moins bien} 24. Rhg1 $36 Ba5 25. Nxb4 Bxb4 26. Nd5
Ba3 {Les compensations du Top GMI sont assez maigres} (26... a5 {[%cal Ga5a4]})
27. Bd2 $2 {[%emt 0:00:19]} (27. Bxc5 $1 Nxc5 28. b4 {[%csl Ra3][%cal Gd5f6,
Gg2b7]} Bxb4 29. Nxb4 Qxb4 30. Qc6+) 27... Nb6 {[%emt 0:00:55]} 28. Ba5 $6 {
[%emt 0:00:16] Les Blancs avaient pourtant assez de temps а la pendule mais
après avoir raté le gain, le 2ème coup faible d'affilée va laisser les noirs
revenir dans la partie.} (28. Nxb6 $142 Qxb6 29. Qa8+ Qd8 30. Qxd8+ Kxd8 31.
Rg4 $14 {[%csl Ra3,Rc5][%cal Gb3b4]} (31. b4 {[%csl Ra3][%cal Gg1g3,Gg3a3]} Ne4
)) 28... Nxd5 29. Qxd5 Qxd5 30. Rxd5 Kd7 (30... Ke7 $142 {Moins risqué}) 31.
Rgd1 Ne4 32. Rxe5 Nf2 33. Rd4 Rc8 34. Re1 Rc5 35. Ra4 Nd3 36. Rxa3 (36. Rf1 {
[%csl Ra3]} Bc1 37. Bb6 {Il est difficile pour les Noirs de pas perdre du
matériel}) 36... Nxe1 37. Bxe1 Rc1+ 38. Kb2 Rxe1 39. Rxa6 Re2+ 40. Kc3 Rxh2 41.
Ra7+ Kc6 42. Rxf7 Rxa2 43. Rxg7 Rf2 44. Rf7 Rg2 45. Rxh7 Rxg5 46. f6 Rf5 47. f7
d5 48. Kd4 1/2-1/2

[Event "Belgrade RAD 30"]
[Site "Belgrade"]
[Date "1977.01.17"]
[Round "3.7"]
[White "Sax, Gyula"]
[Black "Bukic, Enver"]
[Result "1/2-1/2"]
[ECO "B90"]
[WhiteElo "2565"]
[BlackElo "2480"]
[Annotator "Primel,D"]
[PlyCount "87"]
[EventDate "1977.01.15"]
[EventType "tourn"]
[EventRounds "13"]
[EventCountry "SRB"]
[EventCategory "9"]
[SourceTitle "EXT 2018"]
[Source "ChessBase"]
[SourceDate "2017.10.13"]
[SourceVersion "1"]
[SourceVersionDate "2017.10.13"]
[SourceQuality "1"]
[TimeControl "40/9000:16/5400:0"]

1. e4 c5 2. Nf3 d6 3. d4 cxd4 4. Nxd4 Nf6 5. Nc3 a6 6. Be3 e5 7. Nf3 Qc7 8. Bg5
Nbd7 9. a4 Be7 10. Nd2 h6 11. Bh4 g5 12. Bg3 Nf8 13. h4 $146 {Une tentative
d'amélioration sur une partie jouée par le yougoslave quelques mois plus tôt
} (13. Bc4 Be6 14. Bb3 h5 15. h3 h4 16. Bh2 N8d7 17. Qe2 Nc5 18. Bxe6 Nxe6 19.
a5 Rc8 20. Ra4 Nd4 21. Qd1 Nb5 22. Rc4 {1/2-1/2 (22) Hort,V (2600)-Bukic,E 
(2500) Banja Luka 1976}) 13... g4 $5 14. Bc4 Be6 15. Bb3 N8d7 16. Qe2 Nc5 17.
Bc4 Qb6 (17... O-O) (17... Rc8 {[%cal Gc5e4]}) 18. Ra2 Rc8 19. O-O Qb4 20. Nd5
Bxd5 21. c3 $1 Qb6 22. exd5 Qc7 23. f4 $1 gxf3 24. Qxf3 Rg8 25. Be2 Ncd7 26. c4
a5 $1 {[%csl Gb4]} 27. Ne4 {[%csl Rf7]} Rg7 $8 {Une longue suite de coups
uniques pour les Noirs mais les Blancs ont du mal à avoir une forte attaque}
28. Ra3 $1 Nxe4 29. Qxe4 Nf6 30. Qe3 h5 31. Rb3 Ng4 32. Bxg4 hxg4 33. h5 (33.
Kh1 Qc5 34. Qh6) 33... Qc5 34. Qxc5 Rxc5 35. Rxb7 Rxc4 $11 36. Ra7 Bd8 37. Ra8
Kd7 38. b3 Rc5 39. Ra7+ Ke8 40. Rd1 Rh7 41. Bf2 Rc2 42. Ra8 Kd7 43. Ra7+ Ke8
44. Ra8 1/2-1/2